{"text_format":"3","workbook":"xlsx","n_sheets":1,"sheets":["Raws"],"not_rendered":{"external_links":1,"defined_names":8},"read":"whole","date_system":"1900"}

{"sheet":"Raws","index":0,"n_rows":97,"n_cols":19,"rows_kept":97}
[null,"I00","A00","A01","At0","Am0","Ai0","Aa0","Ab0","Ac0","Ad0","R00","Ae0","Af0","Ag0","Ah0","Aj0","Ak0","Ra0"]
[null,"Items","General purpose abilities","General purpose abilities","Tower info","Minion spawn","Minion info","Minion Ability info","Minion Upgrade button","Minion Upgrade minion icon","Minion Upgrade researched icon","Minion Upgrade upgrade","Hero Ability choose","Hero Ability selected","Hero Ability builder icon","Ability Upgrade button","Ability Upgrade minion icon","Ability Upgrade researched icon","Ability Upgrade upgrade"]
[{"$f":" CHAR(ROW(A3) - 3 + 32)","v":" "},null,"EffectDivineShield"]
[{"$f":" CHAR(ROW(A4) - 3 + 32)","v":"!"},null,"ArmorPhysicalDecreased",{"$nulls":5},"Upgrade05.1","Upgrade05.1","Upgrade05.1","Upgrade05.1"]
[{"$f":" CHAR(ROW(A5) - 3 + 32)","v":"\""}]
[{"$f":" CHAR(ROW(A6) - 3 + 32)","v":"#"},null,"BlacksmithInventory"]
[{"$f":" CHAR(ROW(A7) - 3 + 32)","v":"$"},null,"EffectTheBlessedOne"]
[{"$f":" CHAR(ROW(A8) - 3 + 32)","v":"%"},null,"BuilderWallTower"]
[{"$f":" CHAR(ROW(A9) - 3 + 32)","v":"&"}]
[{"$f":" CHAR(ROW(A10) - 3 + 32)","v":"'"}]
[{"$f":" CHAR(ROW(A11) - 3 + 32)","v":"("}]
[{"$f":" CHAR(ROW(A12) - 3 + 32)","v":")"}]
[{"$f":" CHAR(ROW(A13) - 3 + 32)","v":"*"}]
[{"$f":" CHAR(ROW(A14) - 3 + 32)","v":"+"}]
[{"$f":" CHAR(ROW(A15) - 3 + 32)","v":","}]
[{"$f":" CHAR(ROW(A16) - 3 + 32)","v":"-"}]
[{"$f":" CHAR(ROW(A17) - 3 + 32)","v":"."}]
[{"$f":" CHAR(ROW(A18) - 3 + 32)","v":"/"}]
[{"$f":" CHAR(ROW(A19) - 3 + 32)","v":"0"},"Persentage Damage","TowerInventory","BuilderSelectBarracks01 1",null,"Spawn01","MinionInfo01","AbilityInfo01","Upgrade01.0","Upgrade01.0","Upgrade01.0","Upgrade01.0","HeroAbility01","HeroAbility01","HeroAbility01","AbilityUpgrade01.0","AbilityUpgrade01.0","AbilityUpgrade01.0","AbilityUpgrade01.0"]
[{"$f":" CHAR(ROW(A20) - 3 + 32)","v":"1"},"Kills","EffectShield","BlacksmithHPUpgrade","TowerInfo01","Spawn02","MinionInfo02","AbilityInfo02","Upgrade01.1","Upgrade01.1","Upgrade01.1","Upgrade01.1","HeroAbility02","HeroAbility02","HeroAbility02","AbilityUpgrade01.1","AbilityUpgrade01.1","AbilityUpgrade01.1","AbilityUpgrade01.1"]
[{"$f":" CHAR(ROW(A21) - 3 + 32)","v":"2"},"Physical Damage","ExpGeneratorInfo","BlacksmithSwapFaction","TowerInfo02","Spawn03","MinionInfo03","AbilityInfo03","Upgrade01.2","Upgrade01.2","Upgrade01.2","Upgrade01.2","HeroAbility03","HeroAbility03","HeroAbility03","AbilityUpgrade02.0","AbilityUpgrade02.0","AbilityUpgrade02.0","AbilityUpgrade02.0"]
[{"$f":" CHAR(ROW(A22) - 3 + 32)","v":"3"},"Focused Attack Cooldown","MultishotAbil","BlacksmithSpellTowerUpgrade","TowerInfo03","Spawn04","MinionInfo04","AbilityInfo04","Upgrade02.0","Upgrade02.0","Upgrade02.0","Upgrade02.0",{"$nulls":3},"AbilityUpgrade02.1","AbilityUpgrade02.1","AbilityUpgrade02.1","AbilityUpgrade02.1"]
[{"$f":" CHAR(ROW(A23) - 3 + 32)","v":"4"},"Health","LightningInfo","BuilderSelectAltar","TowerInfo04","Spawn05","MinionInfo05","AbilityInfo05","Upgrade02.1","Upgrade02.1","Upgrade02.1","Upgrade02.1",{"$nulls":3},"AbilityUpgrade03.0","AbilityUpgrade03.0","AbilityUpgrade03.0","AbilityUpgrade03.0"]
[{"$f":" CHAR(ROW(A24) - 3 + 32)","v":"5"},"Magical Armor","FocusedAttackInfo","BuilderSelectAltar01","TowerInfo05",null,"MinionInfo06","AbilityInfo06","Upgrade02.2","Upgrade02.2","Upgrade02.2","Upgrade02.2",{"$nulls":3},"AbilityUpgrade03.1","AbilityUpgrade03.1","AbilityUpgrade03.1","AbilityUpgrade03.1"]
[{"$f":" CHAR(ROW(A25) - 3 + 32)","v":"6"},"Required experience","LightningSpell","AltarChooseHero01 0","TowerInfo06",null,null,"AbilityInfo07","Upgrade03.0","Upgrade03.0","Upgrade03.0","Upgrade03.0"]
[{"$f":" CHAR(ROW(A26) - 3 + 32)","v":"7"},"Level","LightningMultishot","AltarChooseHero01 1","TowerInfo07",null,null,"AbilityInfo08","Upgrade03.1","Upgrade03.1","Upgrade03.1","Upgrade03.1"]
[{"$f":" CHAR(ROW(A27) - 3 + 32)","v":"8"},"Physical Armor","BuilderGrid","HealingWaveSpell",{"$nulls":4},"Upgrade03.2","Upgrade03.2","Upgrade03.2","Upgrade03.2"]
[{"$f":" CHAR(ROW(A28) - 3 + 32)","v":"9"},"Magical Damage","MinionInventory",null,"TowerInfo09",{"$nulls":3},"Upgrade05.0","Upgrade05.0","Upgrade05.0","Upgrade05.0"]
[{"$f":" CHAR(ROW(A29) - 3 + 32)","v":":"},"Required gold","ArmorPhysicalPositive",{"$nulls":5},"Upgrade06.0","Upgrade06.0","Upgrade06.0","Upgrade06.0"]
[{"$f":" CHAR(ROW(A30) - 3 + 32)","v":";"},"Stored experience","ArmorPhysicalNegative",{"$nulls":5},"Upgrade05.2","Upgrade05.2","Upgrade05.2","Upgrade05.2"]
[{"$f":" CHAR(ROW(A31) - 3 + 32)","v":"<"},"Orb of Blood Bonus","ArmorMagicalPositive",{"$nulls":5},"Upgrade04.0","Upgrade04.0","Upgrade04.0","Upgrade04.0"]
[{"$f":" CHAR(ROW(A32) - 3 + 32)","v":"="},"Automatic Mode","ArmorMagicalNegative",{"$nulls":5},"Upgrade04.1","Upgrade04.1","Upgrade04.1","Upgrade04.1"]
[{"$f":" CHAR(ROW(A33) - 3 + 32)","v":">"},"Burst Mode","MinionColision",{"$nulls":5},"Upgrade04.2","Upgrade04.2","Upgrade04.2","Upgrade04.2"]
[{"$f":" CHAR(ROW(A34) - 3 + 32)","v":"?"},"Shield","TowerAbilSell",{"$nulls":5},"Upgrade06.1","Upgrade06.1","Upgrade06.1","Upgrade06.1"]
[{"$f":" CHAR(ROW(A35) - 3 + 32)","v":"@"},"Movement Speed","EffectArcaneShield",{"$nulls":5},"Upgrade06.2","Upgrade06.2","Upgrade06.2","Upgrade06.2"]
[{"$f":" CHAR(ROW(A36) - 3 + 32)","v":"A"},"Lifetime","TowerAbilDestroy"]
[{"$f":" CHAR(ROW(A37) - 3 + 32)","v":"B"},"Health Upgrade Level","MinionAbilSell"]
[{"$f":" CHAR(ROW(A38) - 3 + 32)","v":"C"},"Health Upgrade Cost","BarracksSelectBlacksmith"]
[{"$f":" CHAR(ROW(A39) - 3 + 32)","v":"D"},"Swap Faction","BarracksSwapFaction"]
[{"$f":" CHAR(ROW(A40) - 3 + 32)","v":"E"},"Spell Tower Upgrade Cost","MinionInvisibility"]
[{"$f":" CHAR(ROW(A41) - 3 + 32)","v":"F"},"Spell Tower Level","EnhancedWeaponSpell"]
[{"$f":" CHAR(ROW(A42) - 3 + 32)","v":"G"},null,"AttackRemoval"]
[{"$f":" CHAR(ROW(A43) - 3 + 32)","v":"H"},null,"EddectSpeedup"]
[{"$f":" CHAR(ROW(A44) - 3 + 32)","v":"I"},null,"TowerLevelUp"]
[{"$f":" CHAR(ROW(A45) - 3 + 32)","v":"J"},null,"EnhancedWeaponInfo"]
[{"$f":" CHAR(ROW(A46) - 3 + 32)","v":"K"},null,"GoldMiningInfo"]
[{"$f":" CHAR(ROW(A47) - 3 + 32)","v":"L"},null,"BuilderSelectBarracks01 0"]
[{"$f":" CHAR(ROW(A48) - 3 + 32)","v":"M"},null,"MultishotInfo"]
[{"$f":" CHAR(ROW(A49) - 3 + 32)","v":"N"},null,"EffectSlowdown"]
[{"$f":" CHAR(ROW(A50) - 3 + 32)","v":"O"},null,"BarracksSelectAltar"]
[{"$f":" CHAR(ROW(A51) - 3 + 32)","v":"P"},null,"OrbOfBloodInfo"]
[{"$f":" CHAR(ROW(A52) - 3 + 32)","v":"Q"},null,"ShockwaveSpell"]
[{"$f":" CHAR(ROW(A53) - 3 + 32)","v":"R"},null,"Attack"]
[{"$f":" CHAR(ROW(A54) - 3 + 32)","v":"S"},null,"AttackToggle"]
[{"$f":" CHAR(ROW(A55) - 3 + 32)","v":"T"},null,"ShockwaveInfo"]
[{"$f":" CHAR(ROW(A56) - 3 + 32)","v":"U"},null,"ReplenishLifeInfo"]
[{"$f":" CHAR(ROW(A57) - 3 + 32)","v":"V"},null,"EffectStun"]
[{"$f":" CHAR(ROW(A58) - 3 + 32)","v":"W"},null,"AbilityInfo03 Alt"]
[{"$f":" CHAR(ROW(A59) - 3 + 32)","v":"X"},null,"BarracksSelectCamp"]
[{"$f":" CHAR(ROW(A60) - 3 + 32)","v":"Y"},null,"BuilderBuild"]
[{"$f":" CHAR(ROW(A61) - 3 + 32)","v":"Z"},null,"EffectPersistence"]
[{"$f":" CHAR(ROW(A62) - 3 + 32)","v":"["},null,"ArmorPhysicalIncreased"]
[{"$f":" CHAR(ROW(A63) - 3 + 32)","v":"\\"}]
[{"$f":" CHAR(ROW(A64) - 3 + 32)","v":"]"},null,"ArmorMagicalIncreased"]
[{"$f":" CHAR(ROW(A65) - 3 + 32)","v":"^"},null,"ArmorMagicalDecreased"]
[{"$f":" CHAR(ROW(A66) - 3 + 32)","v":"_"}]
[{"$f":" CHAR(ROW(A67) - 3 + 32)","v":"`"}]
[{"$f":" CHAR(ROW(A68) - 3 + 32)","v":"a"}]
[{"$f":" CHAR(ROW(A69) - 3 + 32)","v":"b"}]
[{"$f":" CHAR(ROW(A70) - 3 + 32)","v":"c"}]
[{"$f":" CHAR(ROW(A71) - 3 + 32)","v":"d"}]
[{"$f":" CHAR(ROW(A72) - 3 + 32)","v":"e"}]
[{"$f":" CHAR(ROW(A73) - 3 + 32)","v":"f"}]
[{"$f":" CHAR(ROW(A74) - 3 + 32)","v":"g"}]
[{"$f":" CHAR(ROW(A75) - 3 + 32)","v":"h"}]
[{"$f":" CHAR(ROW(A76) - 3 + 32)","v":"i"}]
[{"$f":" CHAR(ROW(A77) - 3 + 32)","v":"j"}]
[{"$f":" CHAR(ROW(A78) - 3 + 32)","v":"k"}]
[{"$f":" CHAR(ROW(A79) - 3 + 32)","v":"l"}]
[{"$f":" CHAR(ROW(A80) - 3 + 32)","v":"m"}]
[{"$f":" CHAR(ROW(A81) - 3 + 32)","v":"n"}]
[{"$f":" CHAR(ROW(A82) - 3 + 32)","v":"o"}]
[{"$f":" CHAR(ROW(A83) - 3 + 32)","v":"p"}]
[{"$f":" CHAR(ROW(A84) - 3 + 32)","v":"q"}]
[{"$f":" CHAR(ROW(A85) - 3 + 32)","v":"r"}]
[{"$f":" CHAR(ROW(A86) - 3 + 32)","v":"s"}]
[{"$f":" CHAR(ROW(A87) - 3 + 32)","v":"t"}]
[{"$f":" CHAR(ROW(A88) - 3 + 32)","v":"u"}]
[{"$f":" CHAR(ROW(A89) - 3 + 32)","v":"v"}]
[{"$f":" CHAR(ROW(A90) - 3 + 32)","v":"w"}]
[{"$f":" CHAR(ROW(A91) - 3 + 32)","v":"x"}]
[{"$f":" CHAR(ROW(A92) - 3 + 32)","v":"y"}]
[{"$f":" CHAR(ROW(A93) - 3 + 32)","v":"z"}]
[{"$f":" CHAR(ROW(A94) - 3 + 32)","v":"{"}]
[{"$f":" CHAR(ROW(A95) - 3 + 32)","v":"|"}]
[{"$f":" CHAR(ROW(A96) - 3 + 32)","v":"}"}]
[{"$f":" CHAR(ROW(A97) - 3 + 32)","v":"~"}]